fUST/lending_fUST_20250412
["ID","MTS","AMOUNT","RATE_DAILY","PERIOD"]
[357796698,1744446640489,-498.25,0.00027,2]
[357796700,1744446640500,-15457.62500001,0.00027,2]
[357796702,1744446640510,-300.0,0.00027,7]
[357796704,1744446640520,-300.0,0.00027,7]
[357796706,1744446640530,-151.0,0.00027,7]
[357796708,1744446640539,-151.0,0.00027,7]
[357796711,1744446640549,-537.11863441,0.00027,15]
[357796713,1744446640560,-1000.0,0.00027,5]
[357796715,1744446640572,-1000.0,0.00027,5]
[357796717,1744446640582,-1000.0,0.00027,5]
[357796719,1744446640591,-500.0,0.00027,15]
[357796721,1744446640601,-1898.8654,0.00027,2]
[357796723,1744446640610,-1898.8654,0.00027,2]
[357796725,1744446640620,-151.0,0.00027004,7]
[357796727,1744446640629,-151.0,0.00027033,7]
[357796729,1744446640639,-19563.44957665,0.00027174,2]
[357796731,1744446640649,-3560.20132389,0.0002721,7]
[357796733,1744446640659,-500.0,0.00027397,2]
[357796735,1744446640668,-200.858955,0.00027397,7]
[357796737,1744446640678,-199.976917,0.00027397,120]
[357796739,1744446640687,-500.0,0.00027397,5]
[357796741,1744446640696,-151.0,0.00027762,7]
[357796744,1744446640707,-1447.651437,0.00027762,2]
[357796746,1744446640716,-1447.651437,0.00027762,2]
[357796748,1744446640726,-151.0,0.00027762,2]
[357796750,1744446640735,-151.0,0.00027762,2]
[357796752,1744446640745,-923.252391,0.00027762,7]
[357796754,1744446640755,-923.252391,0.00027762,7]
[357796756,1744446640765,-151.0,0.00027762,7]
[357796758,1744446640775,-186.943529,0.00027762,7]
[357796760,1744446640785,-3560.20132389,0.00027762,7]
[357796762,1744446640795,-500.0,0.00027945,2]
[357796764,1744446640806,-160.0,0.00028,3]
[357796766,1744446640815,-160.0,0.00028,3]
[357796768,1744446640826,-151.0,0.00028,7]
[357796771,1744446640835,-151.0,0.00028,7]
[357796773,1744446640844,-156.49085179,0.00028098,2]
[357796775,1744446640854,-151.0,0.00028176,7]
[357796777,1744446640863,-248.81739,0.00028176,7]
[357796779,1744446640874,-360.1490082,0.00028219,30]
[357796781,1744446640884,-151.0,0.00028252,7]
[357796783,1744446640894,-151.0,0.00028252,7]
[357796785,1744446640904,-151.192069,0.00028252,7]
[357796787,1744446640913,-151.0,0.00028252,7]
[357796789,1744446640923,-151.0,0.00028252,7]
[357796791,1744446640932,-523.293721,0.00028252,7]
[357796793,1744446640942,-523.293721,0.00028252,7]
[357796795,1744446640951,-151.0,0.00028252,7]
[357796797,1744446640961,-151.0,0.00028252,7]
[357796799,1744446640971,-3560.20132389,0.00028314,7]
[357796800,1744446640981,-270.73475,0.00028314,7]
[357796801,1744446640990,-151.0,0.00028314,7]
[357796802,1744446641000,-213.294851,0.00028314,7]
[357796803,1744446641010,-196.183312,0.00028314,7]
[357796804,1744446641020,-151.0,0.00028314,7]
[357796805,1744446641029,-968.461612,0.00028314,7]
[357796806,1744446641040,-968.461612,0.00028314,7]
[357796807,1744446641050,-151.0,0.00028314,7]
[357796808,1744446641060,-151.0,0.00028314,7]
[357796809,1744446641070,-151.0,0.00028314,7]
[357796810,1744446641080,-151.0,0.00028314,7]
[357796811,1744446641090,-151.0,0.00028314,7]
[357796812,1744446641100,-194.171607,0.00028314,7]
[357796813,1744446641109,-151.0,0.00028314,7]
[357796814,1744446641119,-194.171607,0.00028314,7]
[357796815,1744446641129,-440.228889,0.00028314,7]
[357796816,1744446641139,-440.228889,0.00028314,7]
[357796817,1744446641149,-239.823416,0.00028314,7]
[357796818,1744446641159,-239.823416,0.00028314,7]
[357796820,1744446641169,-500.0,0.00028493,2]
[357796821,1744446641178,-74638.60219748,0.0002871,2]
[357796822,1744446641188,-151.0,0.0002871,7]
[357796823,1744446641198,-151.0,0.0002871,7]
[357796825,1744446641208,-151.0,0.0002871,7]
[357796827,1744446641217,-151.0,0.0002871,7]
[357796829,1744446641227,-151.0,0.0002871,7]
[357796831,1744446641236,-1447.651437,0.0002871,2]
[357796833,1744446641245,-1447.651437,0.0002871,2]
[357796835,1744446641255,-151.0,0.0002871,2]
[357796837,1744446641265,-151.0,0.0002871,2]
[357796839,1744446641274,-151.0,0.0002871,7]
[357796841,1744446641284,-523.293721,0.0002871,7]
[357796843,1744446641293,-523.293721,0.0002871,7]
[357796845,1744446641303,-923.252391,0.0002871,7]
[357796847,1744446641313,-923.252391,0.0002871,7]
[357796849,1744446641323,-151.0,0.0002871,7]
[357796851,1744446641333,-151.0,0.0002871,7]
[357796854,1744446641343,-151.0,0.0002871,7]
[357796856,1744446641353,-490.317424,0.0002871,7]
[357796858,1744446641363,-490.317424,0.0002871,7]
[357796860,1744446641372,-283.987642,0.0002871,7]
[357796862,1744446641382,-151.0,0.0002871,7]
[357796864,1744446641391,-440.228889,0.0002871,7]
[357796879,1744446641527,-440.228889,0.0002871,7]
[357796882,1744446641554,-151.0,0.0002871,7]
[357796884,1744446641564,-151.0,0.0002871,7]
[357796886,1744446641574,-258.564475,0.0002871,7]
[357796888,1744446641583,-151.0,0.0002871,7]
[357796890,1744446641594,-186.943529,0.0002871,7]
[357796892,1744446641603,-151.0,0.00028865,7]
[357796895,1744446641613,-151.0,0.00028865,7]
[357796897,1744446641623,-968.461612,0.00028865,7]
[357796899,1744446641632,-968.461612,0.00028865,7]
[357796901,1744446641642,-151.0,0.00028865,7]
[357796903,1744446641652,-151.0,0.00028865,7]
[357796905,1744446641661,-151.0,0.00028865,7]
[357796907,1744446641671,-151.0,0.00028865,7]
[357796909,1744446641680,-194.171607,0.00028865,7]
[357796911,1744446641690,-194.171607,0.00028865,7]
[357796913,1744446641700,-239.823416,0.00028865,7]
[357796915,1744446641709,-239.823416,0.00028865,7]
[357796917,1744446641719,-3560.20132389,0.00028866,8]
[357796919,1744446641729,-500.0,0.00028973,5]
[357796921,1744446641739,-9343.99650984,0.00029,7]
[357796923,1744446641748,-9343.99650984,0.00029,7]
[357796925,1744446641758,-871.12970712,0.00029,2]
[357796927,1744446641767,-5647.45429073,0.00029,7]
[357796929,1744446641777,-5647.45429073,0.00029,7]
[357796931,1744446641787,-301.39404241,0.00029,7]
[357796933,1744446641796,-301.39404241,0.00029,7]
[357796935,1744446641806,-300.0,0.00029,7]
[357796937,1744446641816,-300.0,0.00029,7]
[357796939,1744446641826,-151.0,0.00029,7]
[357796941,1744446641836,-584.945071,0.00029,7]
[357796943,1744446641845,-584.945071,0.00029,7]
[357796945,1744446641854,-160.0,0.00029,7]
[357796947,1744446641864,-160.0,0.00029,7]
[357796949,1744446641874,-160.0,0.00029,10]
[357796951,1744446641883,-160.0,0.00029,10]
[357796953,1744446641893,-500.0,0.00029041,2]
[357796955,1744446641903,-1565.75340383,0.00029042,2]
[357796957,1744446641913,-151.0,0.00029417,7]
[357796959,1744446641922,-151.0,0.00029417,7]
[357796961,1744446641932,-3560.20132389,0.00029417,8]
[357796963,1744446641942,-1000.0,0.00029521,5]
[357796965,1744446641952,-500.0,0.00029589,2]
[357796967,1744446641962,-156.49085179,0.00029696,2]
[357796969,1744446641971,-543.0,0.00029915,2]
[357796971,1744446641981,-706.0,0.00029915,2]
[357796973,1744446641991,-2251.0,0.00029915,2]
[357796975,1744446642001,-402.0,0.00029915,2]
[357796977,1744446642010,-3560.20132389,0.00029969,9]
[357796979,1744446642021,-245767.45581842,0.0003,7]
[357796981,1744446642031,-628.98142663,0.0003,15]
[357796983,1744446642041,-384.0,0.0003,10]
[357796985,1744446642050,-201.6,0.0003,30]
[357796987,1744446642060,-732.2,0.0003,5]
[357796989,1744446642069,-200.0,0.0003,120]
[357796991,1744446642079,-550.0,0.0003,2]
[357796993,1744446642089,-1000.0,0.0003,3]
[357796995,1744446642099,-4396.78602287,0.0003,2]
[357796997,1744446642108,-200.26225,0.0003,120]
[357797000,1744446642118,-200.26225,0.0003,120]
[357797002,1744446642128,-200.26225,0.0003,120]
[357797004,1744446642138,-200.26225,0.0003,120]
[357797007,1744446642148,-300.0,0.0003,7]
[357797009,1744446642158,-300.0,0.0003,7]
[357797011,1744446642168,-500.0,0.0003,10]
[357797013,1744446642177,-151.0,0.0003,7]
[357797015,1744446642187,-151.0,0.0003,7]
[357797017,1744446642196,-151.0,0.0003,7]
[357797019,1744446642206,-187.345064,0.0003,7]
[357797021,1744446642215,-151.0,0.0003,7]
[357797023,1744446642225,-584.945071,0.0003,7]
[357797025,1744446642234,-584.945071,0.0003,7]
[357797027,1744446642244,-305.723611,0.0003,7]
[357797029,1744446642254,-151.0,0.0003,7]
[357797032,1744446642264,-151.0,0.0003,7]
[357797036,1744446642274,-151.0,0.0003,7]
[357797039,1744446642283,-968.461612,0.0003,7]
[357797042,1744446642293,-968.461612,0.0003,7]
[357797045,1744446642302,-151.0,0.0003,7]
[357797048,1744446642312,-151.0,0.0003,7]
[357797051,1744446642322,-199.65196685,0.0003,2]
[357797054,1744446642332,-151.0,0.0003,7]
[357797057,1744446642341,-151.0,0.0003,7]
[357797059,1744446642351,-151.0,0.0003,7]
[357797061,1744446642361,-151.0,0.0003,7]
[357797064,1744446642370,-151.0,0.0003,7]
[357797067,1744446642380,-1447.651437,0.0003,2]
[357797070,1744446642391,-1447.651437,0.0003,2]
[357797073,1744446642401,-151.0,0.0003,2]
[357797074,1744446642411,-151.0,0.0003,2]
[357797076,1744446642420,-158.361021,0.0003,7]
[357797078,1744446642434,-523.293721,0.0003,7]
[357797080,1744446642444,-523.293721,0.0003,7]
[357797082,1744446642454,-923.252391,0.0003,7]
[357797083,1744446642464,-923.252391,0.0003,7]
[357797085,1744446642475,-151.0,0.0003,7]
[357797087,1744446642485,-151.0,0.0003,7]
[357797089,1744446642495,-194.171607,0.0003,7]
[357797091,1744446642507,-151.0,0.0003,7]
[357797093,1744446642517,-194.171607,0.0003,7]
[357797095,1744446642527,-490.317424,0.0003,7]
[357797097,1744446642536,-490.317424,0.0003,7]
[357797099,1744446642546,-151.0,0.0003,7]
[357797101,1744446642556,-440.228889,0.0003,7]
[357797105,1744446642578,-440.228889,0.0003,7]
[357797107,1744446642591,-151.0,0.0003,7]
[357797109,1744446642602,-514.035331,0.0003,2]
[357797111,1744446642613,-158.24566686,0.0003,2]
[357797113,1744446642623,-267.0,0.0003,2]
[357797115,1744446642634,-2000.0,0.0003,4]
[357797117,1744446642644,-160.0,0.0003,7]
[357797119,1744446642654,-151.0,0.0003,7]
[357797121,1744446642664,-239.823416,0.0003,7]
[357797123,1744446642674,-239.823416,0.0003,7]
[357797125,1744446642684,-151.0,0.0003,7]
[357797127,1744446642694,-186.943529,0.0003,7]
[357797129,1744446642705,-1254.1710617,0.00030068,5]
[357797131,1744446642715,-500.0,0.00030137,2]
[357797133,1744446642725,-1000.0,0.00030252,5]
[357797136,1744446642735,-1000.0,0.00030352,5]
[357797138,1744446642746,-564.7737806,0.00030438,30]
[357797140,1744446642755,-564.7737806,0.00030438,30]
[357797142,1744446642766,-564.7737806,0.00030438,30]
[357797144,1744446642775,-564.7737806,0.00030438,30]
[357797146,1744446642786,-564.7737806,0.00030438,30]
[357797148,1744446642796,-1139.4381602,0.00030438,30]
[357797150,1744446642806,-1000.0,0.00030452,5]
[357797152,1744446642816,-1000.0,0.00030452,5]
[357797154,1744446642826,-1000.0,0.00030452,5]
[357797156,1744446642837,-3560.20132389,0.00030521,9]
[357797158,1744446642847,-200.42311812,0.00030652,5]
[357797160,1744446642858,-1000.0,0.00030652,5]
[357797162,1744446642868,-773.66080337,0.00030652,5]
[357797164,1744446642878,-1000.0,0.00030652,5]
[357797166,1744446642889,-1000.0,0.00030652,5]
[357797168,1744446642898,-1000.0,0.00030652,5]
[357797171,1744446642909,-500.0,0.00030685,2]
[357797172,1744446642919,-2000.0,0.00030768,2]
[357797175,1744446642930,-300.96395565,0.0003099,2]
[357797177,1744446642940,-2000.0,0.00031,4]
[357797179,1744446642949,-2057.26394255,0.00031072,9]
[357797241,1744446643556,-1502.93738134,0.00031072,9]
[357797242,1744446643566,-1565.75340383,0.00031214,2]
[357797243,1744446643576,-500.0,0.00031233,2]
[357797244,1744446643585,-156.49085179,0.00031295,2]
[357797245,1744446643595,-1192.38217866,0.00031624,10]
[357797251,1744446643691,-183.589132,0.00025396,2]
[357797253,1744446643701,-186.943529,0.0002673,7]
[357797255,1744446643711,-162.49224904,0.00027397,2]
[357797257,1744446643722,-186.943529,0.00027762,7]
[357797260,1744446643731,-2367.81914523,0.00031624,10]
[357797262,1744446643741,-122.97945179,0.00031781,2]
[357797264,1744446643753,-377.02054821,0.00031781,2]
[357797266,1744446643762,-1000.0,0.000318,30]
[357797268,1744446643772,-471.587,0.00031951,30]
[357797270,1744446643782,-199.976917,0.00031963,120]
[357797272,1744446643791,-2000.0,0.00032,4]
[357797274,1744446643801,-1202.49849006,0.00032018,2]
[357797296,1744446644004,-186.943529,0.0002871,7]
[357797298,1744446644014,-186.943529,0.0003,7]
[357797300,1744446644025,-566.832942,0.00032018,2]
[357797485,1744446645747,-151.0,0.00026744,7]
[357797487,1744446645757,-151.0,0.00028314,7]
[357797490,1744446645768,-151.0,0.00028865,7]
[357797492,1744446645778,-171.493624,0.0003,7]
[357797494,1744446645788,-183.589132,0.00032017,2]
[357797496,1744446645799,-3230.66856794,0.00032018,2]
[357797498,1744446645809,-3560.20132389,0.00032176,10]
[357797500,1744446645819,-503.67596947,0.00032252,5]
[357797502,1744446645829,-728.80996593,0.00032252,5]
[357797699,1744446647669,-271.19003407,0.00032252,5]
[357797701,1744446647679,-517.5986892,0.00032252,5]
[357797703,1744446647690,-1000.43887002,0.00032252,5]
[357797705,1744446647700,-435.52627403,0.00032252,5]
[357797707,1744446647709,-1000.0,0.00032252,5]
[357797709,1744446647719,-953.35514733,0.00032252,5]
[357797710,1744446647729,-262.26,0.000323,2]
[357797712,1744446647739,-194.171607,0.000323,7]
[357797714,1744446647748,-194.171607,0.000323,7]
[357797716,1744446647758,-239.823416,0.000323,7]
[357797719,1744446647768,-239.823416,0.000323,7]
[357797720,1744446647778,-151.0,0.00032328,7]
[357797722,1744446647788,-151.0,0.00032328,7]
[357797724,1744446647798,-186.905647,0.00032452,7]
[357797726,1744446647808,-1447.651437,0.00032452,2]
[357797728,1744446647818,-1447.651437,0.00032452,2]
[357797730,1744446647828,-116.84462767,0.00032452,2]
[357799209,1744446784828,5000.0,0.00027,30]
[357799236,1744447831776,-1000.0,0.000227,2]
[357799237,1744447831787,-550.0,0.000227,2]
[357799238,1744447831798,-160.0,0.00022735,2]
[357799239,1744447831808,-160.0,0.00022735,2]
[357799240,1744447831818,-6119.14092748,0.000247,2]
[357799241,1744447831828,-300.0,0.0002476,2]
[357799242,1744447831841,-543.0,0.00024761,2]
[357799243,1744447831851,-706.0,0.00024761,2]
[357799244,1744447831861,-2250.0,0.00024761,2]
[357799245,1744447831871,-708.4740063,0.00025181,2]
[357799246,1744447831881,-290.8630593,0.00025189,2]
[357799247,1744447831891,-515.19971823,0.00025334,2]
[357799248,1744447831900,-1003.9677628,0.00025528,2]
[357799249,1744447831911,-1898.77403958,0.000259,6]
[357799250,1744447831921,-180.11166923,0.00026223,2]
[357799251,1744447831931,-1898.77403941,0.00026383,6]
[357799252,1744447831941,-500.0,0.00026667,2]
[357799253,1744447831951,-210.0,0.0002673,7]
[357799254,1744447831961,-210.0,0.0002673,7]
[357799255,1744447831970,-160.0,0.00026863,2]
[357799257,1744447831980,-1898.77403941,0.00026866,7]
[357799258,1744447831990,-1180.787113,0.0002694,5]
[357799260,1744447832000,-1000.0,0.0002696,5]
[357799262,1744447832010,-1000.0,0.0002698,5]
[357799264,1744447832019,-1090.393556,0.0002698,5]
[357799265,1744447832029,-1000.0,0.00027,5]
[357799267,1744447832040,-1000.0,0.00027,5]
[357799269,1744447832049,-1898.77403941,0.00027348,7]
[357799270,1744447832059,-500.0,0.00027397,5]
[357799271,1744447832069,-200.0,0.0002756,19]
[357799272,1744447832079,-209.7484,0.00027663,5]
[357799273,1744447832089,-500.0,0.00027683,5]
[357799274,1744447832099,-500.0,0.00027683,5]
[357799275,1744447832109,-354.90514909,0.00027683,5]
[357799276,1744447832122,-145.09485091,0.00027683,5]
[357799277,1744447832133,-154.06,0.00027717,17]
[357799278,1744447832143,-484.44514909,0.00027761,2]
[357799281,1744447837926,-58.55485091,0.00027761,2]
[357799282,1744447837936,-291.78000475,0.00027761,2]
[357799284,1744447837948,-396.48786839,0.00027761,2]
[357799288,1744447837980,-17.73212686,0.00027761,2]
[357799290,1744447837989,-2250.0,0.00027761,2]
[357799292,1744447838000,-500.0,0.00027814,5]
[357799294,1744447838010,-1898.77403941,0.00027831,7]
[357799296,1744447838020,-160.0,0.00028,3]
[357799298,1744447838030,-160.0,0.00028,3]
[357799300,1744447838039,-160.0,0.00028,3]
[357799302,1744447838049,-500.0,0.00028071,5]
[357799304,1744447838059,-500.0,0.00028088,5]
[357799306,1744447838068,-500.0,0.00028129,5]
[357799308,1744447838079,-398.43376724,0.00028129,5]
[357799310,1744447838089,-500.0,0.00028129,5]
[357799313,1744447838099,-210.0,0.00028252,7]
[357799314,1744447838109,-210.0,0.00028252,7]
[357799316,1744447838119,-500.0,0.00028252,2]
[357799318,1744447838128,-1898.77403941,0.00028314,7]
[357799320,1744447838138,-210.0,0.0002871,7]
[357799322,1744447838147,-210.0,0.0002871,7]
[357799324,1744447838157,-160.0,0.0002871,7]
[357799326,1744447838166,-1898.77403941,0.00028797,8]
[357799329,1744447838176,-500.0,0.000288,2]
[357799331,1744447838186,-160.0,0.00029,10]
[357799333,1744447838195,-240.64820355,0.00029279,8]
[357799335,1744447838205,-1898.77403941,0.00029279,8]
[357799337,1744447838215,-500.0,0.00029348,2]
[357799339,1744447838225,-200.0,0.0002949,24]
[357799341,1744447838235,-500.0,0.00029548,5]
[357799343,1744447838245,-1898.77403941,0.00029762,8]
[357799345,1744447838255,-500.0,0.00029896,2]
[357799347,1744447838264,-210.0,0.0003,7]
[357799349,1744447838273,-210.0,0.0003,7]
[357799351,1744447838283,-828.30322525,0.0003,7]
[357799353,1744447838292,-249.0,0.0003,2]
[357799355,1744447838301,-1898.77403941,0.00030245,9]
[357799357,1744447838311,-500.0,0.00030444,2]
[357799359,1744447838320,-1898.77403941,0.00030728,9]
[357799361,1744447838329,-543.0,0.00030761,2]
[357799363,1744447838338,-706.0,0.00030761,2]
[357799365,1744447838348,-2250.0,0.00030761,2]
[357799367,1744447838357,-500.0,0.00030992,2]
[357799369,1744447838366,-500.0,0.00031104,5]
[357799371,1744447838375,-1898.77403941,0.0003121,9]
[357799373,1744447838384,-200.0,0.0003142,30]
[357799375,1744447838394,-599.820341,0.00031478,4]
[357799377,1744447838403,-500.0,0.0003154,2]
[357799379,1744447838412,-500.0,0.00031632,5]
[357799381,1744447838421,-1898.77403941,0.00031693,10]
[357799383,1744447838430,-236.04,0.00032,2]
[357799385,1744447838440,-500.0,0.00032088,2]
[357799387,1744447838450,-1898.77403941,0.00032176,10]
[357799389,1744447838460,-500.0,0.0003245,15]
[357799391,1744447838470,-261.02003105,0.00032451,2]
[357799393,1744447838480,-210.0,0.00032452,7]
[357799395,1744447838489,-210.0,0.00032452,7]
[357799398,1744447838500,-500.0,0.00032636,2]
[357799400,1744447838510,-500.0,0.0003265,15]
[357799402,1744447838520,-1898.77403941,0.00032659,10]
[357799404,1744447838529,-345.13724019,0.00032659,5]
[357799406,1744447838542,-154.86275981,0.00032659,5]
[357799408,1744447838552,-500.0,0.0003285,15]
[357799410,1744447838561,-500.26,0.0003286,3]
[357799412,1744447838570,-250.13,0.0003286,3]
[357799414,1744447838580,-750.44,0.0003286,3]
[357799416,1744447838589,-472.11296662,0.00032869,2]
[357799418,1744447838599,-2129.71285205,0.0003287,2]
[357799435,1744447838612,-454.34896034,0.0003287,2]
[357799439,1744447838778,-205512.94709777,0.0003287,2]
[357799441,1744447838791,-101044.52998349,0.0003287,2]
[357800358,1744447845879,-402.0,0.00024761,2]
[357800360,1744447845889,-402.0,0.00027761,2]
[357800362,1744447845898,-402.0,0.00030761,2]
[357800364,1744447845908,-233.0,0.0003287,2]
[357800366,1744447845917,-3561.0,0.0003287,2]
[357800368,1744447845930,-55805.43191473,0.0003287,2]
[357800418,1744447846379,-8630.70793326,0.0003287,2]
[357800420,1744447846391,-2284.89796755,0.0003287,2]
[357801975,1744449032026,-1000.0,0.000226,2]
[357801976,1744449032038,-419.80094169,0.00022905,2]
[357801977,1744449032047,-160.0,0.00022905,2]
[357801978,1744449032057,-160.0,0.00022905,2]
[357801979,1744449032068,-300.0,0.00024801,2]
[357801980,1744449032079,-706.0,0.00024802,2]
[357801981,1744449032090,-543.0,0.00024802,2]
[357801982,1744449032100,-2250.0,0.00024802,2]
[357801983,1744449032110,-949.38701985,0.000259,6]
[357801984,1744449032120,-180.10446059,0.0002629,2]
[357801985,1744449032130,-949.3870197,0.00026383,6]
[357801986,1744449032141,-500.0,0.00026467,2]
[357801987,1744449032151,-500.0,0.00026467,2]
[357801988,1744449032161,-500.0,0.00026467,2]
[357801989,1744449032171,-500.0,0.00026467,2]
[357801990,1744449032181,-156.56887551,0.00026467,2]
[357801991,1744449032190,-220.97975779,0.00026467,2]
[357801992,1744449032200,-500.0,0.00026467,2]
[357801993,1744449032211,-500.0,0.00026467,2]
[357801994,1744449032221,-500.0,0.00026467,2]
[357801995,1744449032231,-500.0,0.00026467,2]
[357801996,1744449032240,-500.0,0.00026583,2]
[357801997,1744449032253,-500.0,0.00026583,2]
[357801998,1744449032264,-500.0,0.00026583,2]
[357801999,1744449032274,-501.46857729,0.00026675,2]
[357802000,1744449032284,-501.530967,0.00026675,2]
[357802001,1744449032295,-500.0,0.00026675,2]
[357802002,1744449032305,-500.0,0.00026675,2]
[357802003,1744449032317,-500.0,0.00026675,2]
[357802004,1744449032327,-500.0,0.00026675,2]
[357802005,1744449032339,-443.07945613,0.00026675,2]
[357802006,1744449032349,-500.0,0.00026675,2]
[357802007,1744449032359,-500.0,0.00026675,2]
[357802008,1744449032370,-500.0,0.00026675,2]
[357802009,1744449032379,-164.19333831,0.00026675,2]
[357802010,1744449032389,-400.41218334,0.00026675,2]
[357802011,1744449032399,-500.0,0.00026675,2]
[357802012,1744449032409,-500.0,0.00026675,2]
[357802013,1744449032420,-500.22735157,0.00026675,2]
[357802014,1744449032429,-390.4689079,0.00026675,2]
[357802015,1744449032453,-503.68593731,0.00026675,2]
[357802016,1744449032463,-500.0,0.00026675,2]
[357802017,1744449032475,-421.41600855,0.00026675,2]
[357802018,1744449032486,-161.22125578,0.00026675,2]
[357802019,1744449032497,-949.3870197,0.00026866,7]
[357802020,1744449032508,-501.6389006,0.000269,2]
[357802022,1744449032518,-503.54994358,0.000269,2]
[357802024,1744449032529,-500.0,0.00026917,2]
[357802026,1744449032539,-500.0,0.00026917,2]
[357802028,1744449032550,-500.0,0.00026917,2]
[357802030,1744449032561,-500.0,0.00026917,2]
[357802032,1744449032572,-500.0,0.00026917,2]
[357802034,1744449032583,-949.3870197,0.00027348,7]
[357802036,1744449032594,-500.0,0.00027397,5]
[357802039,1744449032604,-978.59587743,0.00027731,2]
[357802041,1744449032615,-706.0,0.00027802,2]
[357802042,1744449032625,-536.483,0.00027802,2]
[357802045,1744449032636,-2250.0,0.00027802,2]
[357802047,1744449032646,-949.3870197,0.00027831,7]
[357802048,1744449032657,-500.0,0.000279,5]
[357802050,1744449032667,-500.0,0.000279,5]
[357802053,1744449032678,-160.0,0.00028,3]
[357802054,1744449032688,-160.0,0.00028,3]
[357802056,1744449032698,-949.3870197,0.00028314,7]
[357802058,1744449032708,-935.1161589,0.00028657,2]
[357802061,1744449032719,-949.3870197,0.00028797,8]
[357802063,1744449032729,-160.0,0.00029,10]
[357802065,1744449032740,-160.0,0.00029,10]
[357802067,1744449032750,-949.3870197,0.00029279,8]
[357802069,1744449032760,-978.59587739,0.00029455,2]
[357802071,1744449032770,-949.3870197,0.00029762,8]
[357802072,1744449032780,-199.976917,0.00029889,120]
[357802073,1744449032791,-272.0,0.0003,2]
[357802074,1744449032801,-949.3870197,0.00030245,9]
[357802075,1744449032811,-200.0,0.0003037,27]
[357802076,1744449032823,-949.3870197,0.00030728,9]
[357802077,1744449032833,-151.0,0.00030802,2]
[357802078,1744449032843,-706.0,0.00030802,2]
[357802079,1744449032854,-1421.13,0.00030802,2]
[357802080,1744449032865,-978.59587739,0.00031179,2]
[357802081,1744449032875,-154.06,0.0003121,28]
[357802082,1744449032885,-949.3870197,0.0003121,9]
[357802083,1744449032895,-151.0,0.0003135,2]
[357802084,1744449032906,-949.3870197,0.00031693,10]
[357802085,1744449032917,-449.8652557,0.00031883,4]
[357802086,1744449032927,-257.14956933,0.00031898,2]
[357802087,1744449032938,-500.0,0.00031946,5]
[357802088,1744449032948,-250.26115361,0.00031946,5]
[357802089,1744449032958,-1000.0,0.00031946,5]
[357802090,1744449032969,-212.43,0.00032,2]
[357802091,1744449032979,-500.0,0.00032,2]
[357802092,1744449032990,-1000.0,0.00032154,5]
[357802093,1744449033000,-519.56836175,0.00032154,5]
[357802094,1744449033010,-500.0,0.00032154,5]
[357802095,1744449033022,-1000.0,0.00032154,5]
[357802096,1744449033033,-500.0,0.00032154,5]
[357802097,1744449033044,-502.58819591,0.00032154,5]
[357802098,1744449033062,-500.0,0.00032154,5]
[357802099,1744449033074,-1000.0,0.00032154,5]
[357802100,1744449033084,-949.3870197,0.00032176,10]
[357802101,1744449033096,-175.99892736,0.00032231,2]
[357802102,1744449033320,-159.31,0.00032321,3]
[357802103,1744449033332,-1194.81,0.00032321,3]